Workbook

Sheet Theis(1935)(Jenkins)
A1: Stream depletion analysis - Theis (Jenkins) solution
A2: Pumped aquifer | Q2: Time | R2: Depletion Rate
A3: Transmissivity (T) | B3: 1000 | C3: (m2/d) | Q3: (days) | R3: (L/s)
A4: Storage coefficient (S) | B4: 0.1 | C4: - | Q4: 1 | R4: =q*erfc1(SQRT(sdf/(4*Q4))) -> 0.02035177317
Q5: 2 | R5: 0.6209680111
Q6: 3 | R6: 2.061334924
Q7: 4 | R7: 3.854989003
Q8: 5 | R8: 5.692315438
Q9: 6 | R9: 7.445738144
Q10: 7 | R10: 9.072466857
Q11: 8 | R11: 10.56498422
Q12: 9 | R12: 11.92964765
Q13: 10 | R13: 13.17762878
Q14: 15 | R14: 18.06551899
Q15: 20 | R15: 21.45975883
Q16: 25 | R16: 23.97499918
Q17: 30 | R17: 25.93024469
Q18: 50 | R18: 30.85375373
A19: Well | Q19: 60 | R19: 32.40384561
A20: Pumping rate (Q) | B20: 50 | C20: (L/s) | Q20: 70 | R20: 33.63019479
A21: Separation distance (L) | B21: 500 | C21: (m) | Q21: 80 | R21: 34.63164432
A22: Stream depletion factor (sdf) | B22: =L^2*S/T -> 25 | C22: (days) | Q22: 90 | R22: 35.46941168
Q23: 100 | R23: 36.18368693
Q24: 150 | R24: 38.64150631
Q25: 200 | R25: 40.12937293
B26: =B25^2*S/T -> 0 | Q26: 250 | R26: 41.15316779
A27: Stream depletion after | Q27: 300 | R27: 41.91282711
A28: Time (days) | B28: q (L/s) | C28: % | Q28: 400 | R28: 42.98419038
A29: 7 | B29: =q*C29 -> 9.072466857 | C29: =erfc1(SQRT(sdf/(4*A29))) -> 0.1814493371
A30: 30 | B30: =q*C30 -> 25.93024469 | C30: =erfc1(SQRT(sdf/(4*A30))) -> 0.5186048938
A31: 150 | B31: =q*C31 -> 38.64150631 | C31: =erfc1(SQRT(sdf/(4*A31))) -> 0.7728301263
A32: 365 | B32: =q*C32 -> 42.65916663 | C32: =erfc1(SQRT(sdf/(4*A32))) -> 0.8531833325

Sheet Hunt(1999)
A1: Stream depletion analysis - Hunt (1999) solution
A2: Pumped aquifer | Q2: Time | R2: Depletion Rate
A3: Transmissivity (T) | B3: 1000 | C3: (m2/d) | Q3: (days) | R3: (L/s)
A4: Storage coefficient (S) | B4: 0.1 | C4: - | Q4: 1 | R4: =q*q_4(Q4*T/(S*L^2),0,1,lambda*L/T) -> 0.004085347074
Q5: 2 | R5: 0.6040936605
Q6: 3 | R6: 2.050228891
Q7: 4 | R7: 3.828321455
Q8: 5 | R8: 5.644247832
Q9: 6 | R9: 7.378340828
Q10: 7 | R10: 8.989880466
Q11: 8 | R11: 10.47123304
A12: Streambed | Q12: 9 | R12: 11.82804165
A13: Hydraulic conductivity (K") | B13: 1000 | C13: (m/d) | Q13: 10 | R13: 13.07072017
A14: Thickness (B") | B14: 1 | C14: (m) | Q14: 15 | R14: 17.95242486
A15: Width (W) | B15: 1 | C15: (m) | Q15: 20 | R15: 21.35231004
A16: Stream bed conductance (λ) | B16: =Condbed*bedwidth/Thickbed -> 1000 | C16: (m/d) | Q16: 25 | R16: 23.87487141
Q17: 30 | R17: 25.83690167
Q18: 50 | R18: 30.77924328
A19: Well | Q19: 60 | R19: 32.33535725
A20: Pumping rate (Q) | B20: 50 | C20: (L/s) | Q20: 70 | R20: 33.56643287
A21: Separation distance (L) | B21: 500 | C21: (m) | Q21: 80 | R21: 34.57171111
Q22: 90 | R22: 35.41266066
Q23: 100 | R23: 36.12963619
Q24: 150 | R24: 38.59669884
Q25: 200 | R25: 40.0901726
Q26: 250 | R26: 41.11785505
A27: Stream depletion after | Q27: 300 | R27: 41.88042211
A28: Time (days) | B28: q (L/s) | C28: % | Q28: 400 | R28: 42.95592738
A29: 7 | B29: =q*C29 -> 8.989880466 | C29: =q_4(A29*T/(S*L^2),0,1,lambda*L/T) -> 0.1797976093
A30: 30 | B30: =q*C30 -> 25.83690167 | C30: =q_4(A30*T/(S*L^2),0,1,lambda*L/T) -> 0.5167380335
A31: 150 | B31: =q*C31 -> 38.59669884 | C31: =q_4(A31*T/(S*L^2),0,1,lambda*L/T) -> 0.7719339768
A32: 365 | B32: =q*C32 -> 42.62964158 | C32: =q_4(A32*T/(S*L^2),0,1,lambda*L/T) -> 0.8525928316
A38: Setting lambda to a very high value will give Theis solution

Sheet Hunt(2003)
A1: Stream depletion analysis - Hunt (2003) solution
A2: Pumped aquifer | Q2: Time | R2: Depletion Rate
A3: Transmissivity (T) | B3: 1000 | C3: (m2/d) | Q3: (days) | R3: (L/s)
A4: Storage coefficient (S) | B4: 0.1 | C4: - | Q4: 1 | R4: =q*q_4(Q4*T/(S*L^2),KB*L^2/T,S/Sy,lambda*L/T) -> 0.004085347074
Q5: 2 | R5: 0.6040936605
A6: Aquitard | Q6: 3 | R6: 2.050228891
A7: Hydraulic conductivity (K') | B7: 0 | C7: (m/d) | Q7: 4 | R7: 3.828321455
A8: Thickness (B') | B8: 1 | C8: (m) | Q8: 5 | R8: 5.644247832
A9: K'/B' | B9: =K_prime/B_prime -> 0 | C9: (d-1) | Q9: 6 | R9: 7.378340828
A10: Specific yield (Sy) | B10: 0.1 | Q10: 7 | R10: 8.989880466
C11: - | Q11: 8 | R11: 10.47123304
A12: Streambed | Q12: 9 | R12: 11.82804165
A13: Hydraulic conductivity (K") | B13: 1000 | C13: (m/d) | Q13: 10 | R13: 13.07072017
A14: Thickness (B") | B14: 1 | C14: (m) | Q14: 20 | R14: 21.35231004
A15: Width (W) | B15: 1 | C15: (m) | Q15: 30 | R15: 25.83690167
A16: Stream bed conductance (λ) | B16: =Condbed*bedwidth/Thickbed -> 1000 | C16: (m/d) | Q16: 40 | R16: 28.72503064
Q17: 50 | R17: 30.77924328
Q18: 60 | R18: 32.33535725
A19: Well | Q19: 70 | R19: 33.56643287
A20: Pumping rate (Q) | B20: 50 | C20: (L/s) | Q20: 80 | R20: 34.57171111
A21: Separation distance (L) | B21: 500 | C21: (m) | Q21: 90 | R21: 35.41266066
Q22: 100 | R22: 36.12963619
Q23: 150 | R23: 38.59669884
Q24: 200 | R24: 40.0901726
Q25: 250 | R25: 41.11785505
Q26: 300 | R26: 41.88042211
A27: Stream depletion after | Q27: 350 | R27: 42.47521793
A28: Time (days) | B28: q (L/s) | C28: % | Q28: 400 | R28: 42.95592738
A29: 7 | B29: =q*C29 -> 8.989880466 | C29: =q_4(A29*T/(S*L^2),KB*L^2/T,S/Sy,lambda*L/T) -> 0.1797976093
A30: 30 | B30: =q*C30 -> 25.83690167 | C30: =q_4(A30*T/(S*L^2),KB*L^2/T,S/Sy,lambda*L/T) -> 0.5167380335
A31: 150 | B31: =q*C31 -> 38.59669884 | C31: =q_4(A31*T/(S*L^2),KB*L^2/T,S/Sy,lambda*L/T) -> 0.7719339768
A32: 365 | B32: =q*C32 -> 42.62964158 | C32: =q_4(A32*T/(S*L^2),KB*L^2/T,S/Sy,lambda*L/T) -> 0.8525928316
A38: Setting K'/B' to zreo gives Hunt 1999 solution

Sheet Ward-Lough(2011)
A1: Stream depletion analysis - Ward Lough (2011) solution
A2: Pumped aquifer | Q2: Time | R2: Depletion Rate
A3: Transmissivity (T2) | B3: 500 | C3: (m2/d) | Q3: (days) | R3: (L/s)
A4: Storage coefficient (S2) | B4: 0.05 | C4: - | Q4: 1 | R4: =q*q_16(Q4*T_2/(S_2*L^2),T_1/T_2,S_1/S_2,KB*L^2/T_2,lambda*L/T_2) -> 0.004080274264
A5: Aquitard | Q5: 2 | R5: 0.6039570114
A6: Hydraulic conductivity (K') | B6: 1000000 | C6: (m/d) | Q6: 3 | R6: 2.049917675
A7: Thickness (B') | B7: 1 | C7: (m) | Q7: 4 | R7: 3.827866349
A8: K'/B' | B8: =K_prime/B_prime -> 1000000 | C8: (d-1) | Q8: 5 | R8: 5.643695433
A9: Upper Aquifer | Q9: 6 | R9: 7.377719448
A10: Overlying T (T1) | B10: 500 | C10: (m2/d) | Q10: 7 | R10: 8.989175597
A11: Specific yield (S1) | B11: 0.05 | C11: - | Q11: 8 | R11: 10.47054678
A12: Streambed | Q12: 9 | R12: 11.8273406
A13: Hydraulic conductivity (K") | B13: 1000 | C13: (m/d) | Q13: 10 | R13: 13.06995603
A14: Thickness (B") | B14: 1 | C14: (m) | Q14: 20 | R14: 21.35158328
A15: Width (W) | B15: 1 | C15: (m) | Q15: 30 | R15: 25.83624181
A16: Stream bed conductance (λ) | B16: =Condbed*bedwidth/Thickbed -> 1000 | C16: (m/d) | Q16: 40 | R16: 28.72442822
Q17: 50 | R17: 30.77868721
Q18: 60 | R18: 32.33483887
A19: Well | Q19: 70 | R19: 33.56614296
A20: Pumping rate (Q) | B20: 50 | C20: (L/s) | Q20: 80 | R20: 34.57009708
A21: Separation distance (L) | B21: 500 | C21: (m) | Q21: 90 | R21: 35.41222236
Q22: 100 | R22: 36.12921747
Q23: 150 | R23: 38.5963497
Q24: 200 | R24: 40.08986704
Q25: 250 | R25: 41.11758001
Q26: 300 | R26: 41.88016998
A27: Stream depletion after | Q27: 350 | R27: 42.47873538
A28: Time (days) | B28: q (L/s) | C28: % | Q28: 400 | R28: 42.95104054
A29: 7 | B29: =q*C29 -> 8.989175597 | C29: =q_16(A29*T_2/(S_2*L^2),T_1/T_2,S_1/S_2,KB*L^2/T_2,lambda*L/T_2) -> 0.1797835119
A30: 30 | B30: =q*C30 -> 25.83624181 | C30: =q_16(A30*T_2/(S_2*L^2),T_1/T_2,S_1/S_2,KB*L^2/T_2,lambda*L/T_2) -> 0.5167248361
A31: 150 | B31: =q*C31 -> 38.5963497 | C31: =q_16(A31*T_2/(S_2*L^2),T_1/T_2,S_1/S_2,KB*L^2/T_2,lambda*L/T_2) -> 0.7719269941
A32: 365 | B32: =q*C32 -> 42.63120637 | C32: =q_16(A32*T_2/(S_2*L^2),T_1/T_2,S_1/S_2,KB*L^2/T_2,lambda*L/T_2) -> 0.8526241274
A38: Setting K'/B' to a large number and either:
A39: Double lambda or
A40: Set T1=T2 = T/2 and S1=S2=S/2 (effective T and S)
A41: will approximate Hunt 1999 solution

Sheet Disclaimer
